Cogmind - Beta 15 @@@ ROGUE MODE // 2025.07.29 @ 02:20:32 Player: Belthorn Result: Self-destructed Performance ------------- Evolutions (1) 500 Regions Visited (2) 400 Robots Destroyed (11) 55 Value Destroyed (325) 325 Prototype IDs (0) 0 Alien Tech Used (0) 0 Bonus (0) 0 TOTAL SCORE: 1280 Bonus ------- None Cogmind --------- Core Integrity 296/400 Matter 278/300 Energy 250/250 System Corruption 0% Temperature Hot (213) Movement Treading (160) Location -9/Materials Parts ------- > --- POWER (1) -------- Ion Engine > --- PROPULSION (2) --- Light Treads Light Treads > --- UTILITY (3) ------ Large Storage Unit Targeting Computer Hardened Light Armor Plating > --- WEAPON (3) ------- Particle Gun Assault Rifle Light Assault Rifle > --- INVENTORY (15) --- Large Battery (200) Structural Scanner Light Armor Plating Shield Generator Peak State ------------ > --- POWER ------------ Ion Engine > --- PROPULSION ------- Light Treads Light Treads > --- UTILITY ---------- Large Storage Unit Targeting Computer Hardened Light Armor Plating > --- WEAPON ----------- Particle Gun Assault Rifle Light Assault Rifle > --- INVENTORY -------- Large Battery Structural Scanner Light Armor Plating Shield Generator [Rating: 11] Favorites ----------- Power Ion Engine Engine Ion Engine Propulsion Light Treads Treads Light Treads Utility Large Storage Unit Device Structural Scanner Storage Large Storage Unit Processor Targeting Computer Protection Hardened Light Armor Plating Weapon Light Assault Rifle Energy Gun Particle Gun Ballistic Gun Light Assault Rifle Build | -11 -10 -9 ------- Run | Yrd Mat Mat Slots Evolved 2 | . . 2 Power . | . . . Propulsion . | . . . Utility 1 | . . 1 Weapon 1 | . . 1 Parts Attached 17 | 6 4 7 Power 3 | 1 1 1 Engine 3 | 1 1 1 Core . | . . . Reactor . | . . . Propulsion 4 | 2 . 2 Treads 4 | 2 . 2 Leg . | . . . Wheel . | . . . Hover . | . . . Flight . | . . . Utility 6 | 1 3 2 Device 1 | . 1 . Storage 3 | 1 2 . Processor 1 | . . 1 Hackware . | . . . Protection 1 | . . 1 Artifact . | . . . Weapon 4 | 2 . 2 Energy Gun 1 | . . 1 Energy Cannon . | . . . Ballistic Gun 3 | 2 . 1 Ballistic Cannon . | . . . Launcher . | . . . Special Weapon . | . . . Impact Weapon . | . . . Slashing Weapon . | . . . Piercing Weapon . | . . . Special Melee Weapon . | . . . Unidentified Prototypes . | . . . Parts Lost 5 | . 2 3 Power 2 | . 2 . Propulsion 2 | . . 2 Utility . | . . . Weapon 1 | . . 1 Highest Loss Streak 1 | . 1 1 To Critical Strikes . | . . . Average Backups 2 | . 2 2 Power . | . . . Propulsion . | . . . Utility 1 | . 1 2 Weapon . | . 1 . Tool/Special . | . . . Unused Backups 4 | . 1 3 Power . | . . . Propulsion . | . . . Utility 4 | . 1 3 Weapon . | . . . Tool/Special . | . . . Average Slot Usage (%) 90 | . 93 88 Engine 7 | . 9 6 Treads 23 | . 28 18 Device 6 | . 12 . Storage 12 | . 13 11 Processor 5 | . . 10 Protection 5 | . . 10 Ballistic Gun 28 | . 28 29 Peak Build Rating 11 | 6 7 11 Average Rating 7 | 4 6 9 On Entrance 4 | . 6 6 Naked Turns . | . . . Heaviest Build 49 | 13 49 36 Greatest Support 40 | 40 40 40 Greatest Overweight (x) 1 | . 1 1 Average Overweight (x) . | . . . Largest Inventory Capacity 20 | 8 20 15 Average Capacity 13 | 6 14 15 Most Carried 4 | 1 4 4 Average Carried 2 | . 2 2 Final Capacity 15 | 8 15 15 Final Carried 4 | 1 3 4 Class Distribution -------------------- 58% | Mutant 41% | Gunner Dominant Class ---------------- Mutant | -10/Materials Gunner | -9/Materials Resources | -11 -10 -9 ----------- Run | Yrd Mat Mat Matter Collected 538 | 225 109 204 Remotely . | . . . Salvage Created 344 | . 109 235 Parts 24 | . 10 14 Haulers Intercepted . | . . . Recyclers Shooed . | . . . Parts Field Recycled . | . . . Retrieved Matter . | . . . Parts Self-Destructed . | . . . Prevented . | . . . Kills | -11 -10 -9 ------- Run | Yrd Mat Mat Combat Hostiles Destroyed 9 | . 4 5 Guns 9 | . 4 5 Classes Destroyed 4 | . 3 1 Watcher 2 | . 1 1 Swarmer 2 | . 2 . Grunt 5 | . 2 3 Sentry 2 | . . 2 Best Kill Streak 3 | . 3 2 Combat Bots Only 2 | . 2 2 Max Kills in Single Turn 1 | . 1 1 Gunslinging . | . . . Exploded . | . . . Melee . | . . . Uniques/NPCs Destroyed . | . . . Combat | -11 -10 -9 -------- Run | Yrd Mat Mat Hostile Shots Fired 110 | . 49 61 Missed 22 | . 9 13 Hits 88 | . 40 48 Melee 1 | . . 1 Projectile 87 | . 40 47 Critical Strikes 1 | . 1 . Damage Taken 1131 | . 447 684 Core 193 | . 89 104 Absorbed by Shields . | . . . Core Remaining (%) 82 | 100 64 . Volleys Fired 47 | . 19 28 Largest 3 | . 2 3 Hottest 105 | . 40 105 Shots Fired 121 | . 38 83 Gun 121 | . 38 83 Cannon . | . . . Launcher . | . . . Special . | . . . Kinetic 118 | . 38 80 Thermal 3 | . . 3 Explosive . | . . . Electromagnetic . | . . . Robot Hit Streak 9 | . 7 9 Robot Miss Streak 3 | . 3 3 Penetration Max . | . . . Secondary Targets 1 | . 1 . Max Gunslinging Chain 1 | . 1 . Shots Hit Robots 72 | . 22 50 Core Hits 27 | . 11 16 Critical Kills . | . . . Critical Parts Destroyed 2 | . 1 1 Critical Strikes 3 | . 1 2 Destroy 3 | . 1 2 Melee Attacks . | . . . Impact . | . . . Slashing . | . . . Piercing . | . . . Sneak Attacks . | . . . Combat Hostiles . | . . . Follow-up Attacks . | . . . Damage Inflicted 764 | . 288 476 Guns 756 | . 280 476 Cannons . | . . . Explosions . | . . . Melee . | . . . Ramming 8 | . 8 . Kinetic 729 | . 280 449 Thermal 27 | . . 27 Explosive . | . . . Electromagnetic . | . . . Impact . | . . . Slashing . | . . . Piercing . | . . . Highest Corruption . | . . . Average Corruption . | . . . Corruption Purged . | . . . Corruption Blocked . | . . . Overload Shots . | . . . Overflow Damage . | . . . Projectiles . | . . . Explosions . | . . . Melee . | . . . Knockbacks . | . . . Impact . | . . . Kinetic . | . . . Secondary . | . . . Self-Inflicted Damage . | . . . Shots . | . . . Rammed 1 | . 1 . Targets Rammed 1 | . 1 . Kicked . | . . . Crushed . | . . . Highest Temperature 204 | . 12 204 Average Temperature 48 | . 7 52 Received Heat Transfer 360 | . 66 294 Siege Activations . | . . . Martial Activations . | . . . Shielding Activations . | . . . Robots Disrupted . | . . . Combat Hostiles . | . . . Robots Corrupted . | . . . Combat Hostiles . | . . . Parts Fried . | . . . Impact Corruptions . | . . . Robots Melted . | . . . Combat Hostiles . | . . . Parts Melted . | . . . Heat Transferred 74 | . . 74 Parts Sabotaged . | . . . Parts Stolen . | . . . Parts Stripped . | . . . Power Chain Reactions . | . . . Alert | -11 -10 -9 ------- Run | Yrd Mat Mat Maximum Alert Level . | . . . Low Security (%) 100 | 100 100 100 Level 1 . | . . . Level 2 . | . . . Level 3 . | . . . Level 4 . | . . . Level 5 . | . . . High Security . | . . . Max Security . | . . . Peak Influence 70 | . 70 40 Initial . | . . . Average 12 | . 18 8 Influence Increases 289 | . 137 152 Destroy 0b10 Robot/C 180 | . 80 100 Destroy 0b10 Robot/NC 10 | . 5 5 Destroy Leader 54 | . 22 32 Lose Combat Pursuer 45 | . 30 15 Influence Decreases 289 | . 137 152 Time Decay 267 | . 117 150 Lost Part 22 | . 20 2 Squads Dispatched 1 | . 1 . Investigation . | . . . Extermination . | . . . Reinforcement 1 | . 1 . Assault . | . . . Garrison . | . . . Intercept . | . . . Searches Triggered . | . . . Construction Impeded . | . . . Haulers Reinforced . | . . . Active Scanning Responses . | . . . Cargo Convoy Interrupts . | . . . Stealth | -11 -10 -9 --------- Run | Yrd Mat Mat Distress Signals . | . . . Communications Jammed . | . . . Distress Signals . | . . . Times Spotted 22 | . 7 15 Peak Tracking Total 8 | . 3 8 Tactical Retreats 2 | . 1 1 Traps | -11 -10 -9 ------- Run | Yrd Mat Mat Traps Triggered 2 | . 2 . Indirectly . | . . . Trap Hack Attempts . | . . . Triggered . | . . . Disarmed . | . . . Reprogrammed . | . . . Reused . | . . . Traps Extracted . | . . . Installed . | . . . Triggered . | . . . Machines | -11 -10 -9 ---------- Run | Yrd Mat Mat Machines Disabled . | . . . Max in Single Turn . | . . . Machines Repaired . | . . . Machines Dismantled . | . . . Machines Sabotaged . | . . . Overloaded Fab Kills . | . . . Hacking | -11 -10 -9 --------- Run | Yrd Mat Mat Machines Accessed 4 | . 2 2 Terminals 4 | . 2 2 Fabricators . | . . . Repair Stations . | . . . Recycling Units . | . . . Scanalyzers . | . . . Garrison Access . | . . . Total Hacks 7 | . 3 4 Successful 1 | . 1 . Failed 6 | . 2 4 Catastrophic 2 | . 1 1 Database Lockouts . | . . . Manual 3 | . 2 1 Terminals 7 | . 3 4 Fabricators . | . . . Repair Stations . | . . . Recycling Units . | . . . Scanalyzers . | . . . Garrison Access . | . . . Terminal Hacks 1 | . 1 . Alert Level 1 | . 1 . Fabricator Hacks . | . . . Repair Station Hacks . | . . . Recycling Unit Hacks . | . . . Scanalyzer . | . . . Garrison Access Hacks . | . . . Unauthorized Hacks . | . . . Terminals . | . . . Fabricators . | . . . Repair Stations . | . . . Recycling Units . | . . . Scanalyzers . | . . . Garrison Access . | . . . Data Cores Recovered . | . . . Used . | . . . Hacking Detections 3 | . 1 2 Full Trace Events . | . . . Feedback Events . | . . . Feedback Blocked . | . . . Robot Schematics Acquired . | . . . Robots Built . | . . . Authchips . | . . . Time . | . . . Total Robot Build Rating . | . . . Part Schematics Acquired . | . . . Parts Built . | . . . Authchips . | . . . Time . | . . . Total Part Build Rating . | . . . Parts Repaired . | . . . Time . | . . . Parts Recycled . | . . . Recycled Matter . | . . . Retrieved Matter . | . . . Retrieved Components . | . . . Parts Scanalyzed . | . . . Part Schematics Acquired . | . . . Parts Damaged . | . . . Bothacking | -11 -10 -9 ------------ Run | Yrd Mat Mat Used RIF Installer . | . . . Robots Hacked . | . . . Non-combat . | . . . Combat . | . . . Robot Hacks Applied . | . . . Relay Couplers Released . | . . . Fabnet Peak Effective % . | . . . Robots Rewired . | . . . Allies Hacked . | . . . Hacks Repelled . | . . . Allies | -11 -10 -9 -------- Run | Yrd Mat Mat Total Allies . | . . . Largest Group . | . . . Highest-Rated Group . | . . . Highest-Rated Ally . | . . . Total Orders . | . . . Ally Attacks . | . . . Total Damage . | . . . Kills . | . . . Allies Corrupted . | . . . Allies Melted . | . . . Intel | -11 -10 -9 ------- Run | Yrd Mat Mat Active Infowar (turns) 436 | . 403 33 Structural 436 | . 403 33 Robot Analysis Total . | . . . Derelict Logs Recovered . | . . . Drone Launches . | . . . Drone Recoveries . | . . . Exploration | -11 -10 -9 ------------- Run | Yrd Mat Mat Turns Passed 1039 | 75 434 530 Spaces Moved 516 | 51 226 239 Core 14 | 14 . . Treads 502 | 37 226 239 Legs . | . . . Wheels . | . . . Hover . | . . . Flight . | . . . Fastest Speed 50 | 50 160 160 Average Speed 163 | 129 161 173 Slowest Speed 240 | 160 240 240 Overloaded Moves . | . . . Propulsion Burnouts . | . . . Robots Hopped . | . . . Potential Cave-ins . | . . . Cave-ins Triggered . | . . . Exploration Rate (%) 21 | 4 38 21 Regions Visited 2 Branch Regions . Pre-discovered Areas . | . . . Known Exits Taken . | . . . Unknown Exits Taken 2 | 1 1 . Scrap Searched . | . . . Spaces Dug . | . . . Terrain Destroyed . | . . . Melee . | . . . Projectile . | . . . AOE . | . . . Terrain Rammed . | . . . Walls Destroyed . | . . . Machines Disabled . | . . . Actions | -11 -10 -9 --------- Run | Yrd Mat Mat Total 619 | 57 261 301 Wait 28 | . 4 24 Move 514 | 50 225 239 Hop . | . . . Pick Up 8 | 1 5 2 Fast Attach 12 | 6 1 5 Attach 4 | . 2 2 Detach 1 | . . 1 Swap 1 | . 1 . Drop 3 | . 3 . Fire 47 | . 19 28 Melee . | . . . Ram . | . . . Kick . | . . . Crush 1 | . 1 . Escape Stasis . | . . . Rewire . | . . . Trap . | . . . Miscellaneous . | . . . Route ------- -11/Scrapyard -10/Materials -9/Materials (discovered 1 exit: [*Sto]) History --------- Turn | Location | Event 3 | -11/Scrapyard | Discovered new exit (range 16) 76 | -11/Scrapyard | Entered Materials 305 | -10/Materials | Build established: Mutant 359 | -10/Materials | Discovered new exit (range 9) 510 | -10/Materials | Entered another Materials area 510 | -9/Materials | Evolved 2 slots: Utility x1, Weapon x1 809 | -9/Materials | Build established: Gunner 850 | -9/Materials | Discovered new exit (range 9) 1040 | -9/Materials | Self-destructed Last Messages --------------- 00854_ R-06 Scavenger collects Particle Gun. 00858_ R-06 Scavenger collects Ion Engine. 00861_ R-06 Scavenger collects Aluminum Leg. 00865_ K-01 Serf collects debris. 00893_ Connecting with Terminal... 00897_ K-01 Serf collects debris. 00920_ Y-45 Defender suffers critical hit (Destroy). 00921_ Lgt. Assault Rifle destroyed. 00923_ Y-45 Defender destroyed. 00928_ Acquired 19 matter. 00933_ Acquired Lgt. Treads. 00936_ Acquired Lgt. Armor Plating. 00939_ Acquired 10 matter. 00971_ K-01 Serf cleans the Purification Channel. 01003_ Acquired Particle Gun. 01022_ K-01 Serf cleans the Purification Channel. 01024_ C-30 ARC bursts open, deploying its payload. 01024_ G-47 Trooper unfolds itself. 01024_ G-34 Mercenary unfolds itself. 01026_ K-01 Serf collects debris. Map ----- +----------------------------------------------------+ | | | | | | | | | ?????????????????????????????????????????????????? | | ?????????????????????????????????????????????????? | | ?????????????????????????????????????????????????? | | ?????????????????????????????????????????????????? | | ?????????????????????????????????????????????????? | | ?????????????????????????????????????????????????? | | ?????????????????????????????????????????????????? | | ?????????????????????????????????????????????????? | | ?????????????????????????????????????????????????? | | ?????????????????????????????????????????????????? | | ?????????????????????????????????????????????????? | | ?????????????????????????????????????????????????? | | ?????????????????????????????????????????????????? | | ?????????????????????????????????????????????????? | | ?????????????????????????????????????????????????? | | ????????????????????????###??????????????????????? | | ????????????????????????g ??????????????????????? | | ????????????????????????#g#??????????????????????? | | ????????????????????????#Y#??????????????????????? | | ????????????????????????# #??????????????????????? | | ????????????????????????#l#??????????????????????? | | ????????????????????????#@#??????????????????????? | | ????????????????????????# #??????????????????????? | | ????????????????????????# #????????? ?????????? | | ????????????????????????# ######## ????????? | | ????????????????????????# = ????????? | | ????????????????????????# ????????? | | ????????????????????????# g " " ""?????????? | | ???????????????########?# """ """ ???????????? | | ???????????????? #?# """ """ "??????????? | | ????????????????? #?# """ """ ???????????? | | ?????????????????? #?#g "" "" ????????????? | | ??????????????????# #?# g """ """ ????????????? | | ####??????????????# #?# "" "" ???????? | | "" #??#######?????# #?# """ """ ??????? | | #??# ####### ### " " #?????? | | "" #### #?????? | | "" +% < % ?????? | | "" #### " ?????? | | #??# ########+############ ?????? | | #??## ###### #??????? ??????? | | #???# # #""" #????????? ######??????? | | ####???# # "" #""" #?????????? #???????????? | | ####### + "T #""" #???????????#???????????? | | # "" # #???????????????????????? | | + #""" #???????????????????????? | +----------------------------------------------------+ Best States ------------- Heat Dissipation 28 Energy Generation 10 Energy Capacity 250 Matter Stores 300 Matter Capacity 300 Sight Range 16 Terrain Scan Density 10 Armor Coverage 150 Evasion (%) 50 Targeting Accuracy 5 Recoil Reduction 2 Item Schematics ----------------- None Robot Schematics ------------------ None Fabricated ------------ Nothing Repaired ---------- Nothing Alien Tech Used ----------------- None Achievements -------------- None Challenges ------------ None Game ------ Seed CoordinationPartitionScanner Manual? 0 Play Time 00:11:54 Cumulative 6.8 hours Start 2025.07.29 @ 02:09:18 End 2025.07.29 @ 02:20:32 Sessions 1 Manual Loads 0 Difficulty Rogue Special Mode None Game No. 8 Rogue 5 Adventurer 3 Explorer 0 Win Type - Total 0 Types 0/0/0/0/0/0/0/0/0/0 Lore% 5 Gallery% 10 Achievement% 11 Wizard Run 0 Options --------- Layout 0 ASCII 0 Keyboard 0 Movement Mouse Keybinds 0 Fullscreen 1 Font 24/Smallcaps Map View 113x50 Zoom Use 0% Tactical HUD 1 Map Filters NONE Filters NONE Steam 1 RUN: a200cf72-38a2-4a5b-be07-dc464ae0f79e